bitfinex/quotes_SOLUSD_20250321
["timestamp","ask_amount","ask_price","bid_price","bid_amount"]
[1742591381706,1.5219,129.13,129.08,6.62]
[1742591381907,1.5219,129.13,129.09,7.7465]
[1742591383092,0.03,129.14,129.09,7.7465]
[1742591384919,0.03,129.14,129.09,27.1128]
[1742591385925,0.03,129.14,129.09,7.7465]
[1742591390724,0.03,129.14,129.09,27.1128]
[1742591391042,0.03,129.14,129.09,231.8328]
[1742591397154,0.03,129.14,129.1,0.28432314]
[1742591397451,0.03,129.14,129.1,18.933972]
[1742591398744,0.03,129.14,129.11,27.1086]
[1742591399052,0.03,129.14,129.12,6.6]
[1742591401353,0.03,129.14,129.12,14.3444]
[1742591407549,22.1195439,129.2,129.12,14.3444]
[1742591407550,10.5089439,129.2,129.13,26.678072]
[1742591407757,2.7688439,129.2,129.13,46.038372]
[1742591407954,2.7688439,129.2,129.16,20.0]
[1742591408153,2.7688439,129.2,129.17,211.28]
[1742591409264,2.7688439,129.2,129.17,215.06774917]
[1742591409642,2.7688439,129.2,129.17,222.80884917]
[1742591410865,2.7688439,129.2,129.17,215.06774917]
[1742591413446,2.7688439,129.2,129.17,222.80924917]
[1742591414865,2.7688439,129.2,129.17,242.16354917]
[1742591417065,2.7688439,129.2,129.17,222.80924917]
[1742591418366,2.7988439,129.2,129.17,222.80924917]
[1742591418558,2.7988439,129.2,129.17,242.16354917]
[1742591423493,2.7988439,129.2,129.17,222.80924917]
[1742591423787,2.7988439,129.2,129.17,242.16354917]
[1742591432982,2.7988439,129.2,129.17,235.56354917]
[1742591433295,2.7988439,129.2,129.19,7.7405]
[1742591434790,8.1006,129.24,129.19,27.0918]
[1742591436493,8.1006,129.24,129.21,7.7393]
[1742591436697,8.1006,129.24,129.22,6.6]
[1742591438399,1.9958,129.24,129.22,6.6]
[1742591438591,1.9958,129.24,129.23,7.7381]
[1742591439405,0.4,129.24,129.23,7.7381]
[1742591440878,0.4,129.24,129.23,13.77914807]
[1742591441599,0.4,129.24,129.23,7.7381]
[1742591442499,0.43,129.24,129.23,7.7381]
[1742591442899,0.43,129.24,129.23,26.672072]
[1742591443084,0.43,129.24,129.23,32.7642477]
[1742591444098,0.43,129.24,129.23,13.8302757]
[1742591444293,0.43,129.24,129.2,204.56]
[1742591444490,0.43,129.24,129.21,6.62]
[1742591444703,0.43,129.24,129.21,14.3592]
[1742591445002,0.43,129.24,129.21,6.62]
[1742591446394,0.43,129.24,129.21,14.3592]
[1742591449990,0.43,129.24,129.23,20.0]
[1742591450799,0.43,129.24,129.23,39.21829514]
[1742591450978,0.43,129.24,129.23,46.95639514]
[1742591451179,0.43,129.24,129.23,50.15218498]
[1742591451384,1.5875,129.33,129.24,19.21829514]
[1742591451706,1.5875,129.33,129.26,18.933972]
[1742591453007,1.5875,129.33,129.27,7.7357]
[1742591453219,0.03,129.33,129.29,19.21829514]
[1742591453384,0.03,129.33,129.3,6.64]
[1742591455906,0.03,129.33,129.3,14.3738]
[1742591458608,0.03,129.33,129.3,6.64]
[1742591460504,7.7626,129.32,129.23,8.19817219]
[1742591460714,7.7626,129.27,129.19,0.063]
[1742591460920,9.31603796,129.27,129.19,0.063]
[1742591461215,7.7626,129.27,129.19,0.063]
[1742591461416,7.7626,129.27,129.2,6.76]
[1742591462482,7.7363,129.26,129.2,6.76]
[1742591462682,5.75907785,129.25,129.2,6.76]
[1742591462882,5.75907785,129.25,129.19,204.503]
[1742591463116,5.75907785,129.25,129.2,6.76]
[1742591463512,7.7363,129.26,129.2,6.76]
[1742591463895,27.0771,129.26,129.2,6.76]
[1742591464220,27.0771,129.26,129.19,204.503]
[1742591464512,7.7375,129.24,129.19,211.263]
[1742591464912,27.0813,129.24,129.19,211.263]
[1742591466592,19.3438,129.24,129.19,211.263]
[1742591467415,5.76226257,129.23,129.19,211.263]
[1742591468613,19.3438,129.24,129.19,211.263]
[1742591468889,19.3438,129.24,129.19,204.503]
[1742591469098,1.6295,129.23,129.19,0.063]
[1742591469617,6.0498,129.21,129.19,0.063]
[1742591470390,5.76171402,129.22,129.19,0.063]
[1742591470898,7.7387,129.22,129.19,0.063]
[1742591471399,5.758899,129.21,129.19,0.063]
[1742591471605,7.7387,129.22,129.19,0.063]
[1742591473018,5.7573646,129.21,129.19,0.063]
[1742591474210,7.7387,129.22,129.19,0.063]
[1742591477833,1.6595,129.26,129.19,6.803]
[1742591478200,0.03,129.26,129.19,6.803]
[1742591478425,0.03,129.26,129.2,7.7399]
[1742591479006,0.03,129.26,129.19,14.5432]
[1742591480516,0.03,129.25,129.19,14.5432]
[1742591488219,1.6257,129.24,129.19,0.063]
[1742591488418,1.55343796,129.23,129.19,0.063]
[1742591489717,27.0855,129.22,129.19,0.063]
[1742591490544,7.7387,129.22,129.19,0.063]
[1742591492039,27.0844,129.23,129.19,0.063]
[1742591492822,1.55343796,129.22,129.19,0.063]
[1742591493945,7.7393,129.21,129.19,0.063]
[1742591496433,7.7389,129.22,129.19,0.063]
[1742591496640,0.03,129.25,129.19,6.823]
[1742591498616,0.03,129.25,129.2,7.7399]
[1742591499628,0.03,129.25,129.2,27.0897]
[1742591500017,0.03,129.25,129.2,7.7399]
[1742591505530,5.78338195,129.24,129.2,7.7399]
[1742591506535,7.767,129.25,129.2,7.7399]
[1742591507636,0.03,129.25,129.2,7.7399]
[1742591509230,13.52331517,129.24,129.2,7.7399]
[1742591510637,5.78551517,129.23,129.2,7.7399]
[1742591512149,0.03,129.25,129.2,7.7399]
[1742591512944,5.78566231,129.24,129.2,7.7399]
[1742591513339,13.52336231,129.24,129.2,7.7399]
[1742591514254,5.78566231,129.23,129.2,7.7399]
[1742591515441,0.03,129.25,129.2,7.7399]
[1742591516947,13.52389028,129.24,129.2,7.7399]
[1742591517850,5.78629028,129.23,129.2,7.7399]
[1742591518755,7.7376,129.24,129.2,7.7399]
[1742591520151,0.03,129.25,129.2,7.7399]
[1742591521150,13.52506071,129.24,129.2,7.7399]
[1742591522354,5.78736071,129.23,129.2,7.7399]
[1742591522955,0.03,129.25,129.2,7.7399]
[1742591524252,13.52596328,129.24,129.2,7.7399]
[1742591525457,5.78846328,129.23,129.2,7.7399]
[1742591526051,0.03,129.25,129.2,7.7399]
[1742591527559,5.78830327,129.24,129.2,7.7399]
[1742591528259,5.78830327,129.23,129.2,7.7399]
[1742591529552,0.03,129.25,129.2,7.7399]
[1742591530738,5.78779346,129.24,129.2,7.7399]
[1742591531640,5.78779346,129.23,129.2,7.7399]
[1742591532132,5.78779346,129.23,129.2,27.0897]
[1742591532540,0.03,129.25,129.2,27.0897]
[1742591534860,19.3363,129.29,129.2,27.0897]
[1742591535861,19.3363,129.29,129.2,7.7399]
[1742591537061,27.0708,129.29,129.2,7.7399]
[1742591538665,27.0708,129.29,129.21,212.2788]
[1742591549267,20.7717331,129.28,129.21,204.54]
[1742591549447,9.26913783,129.27,129.21,204.54]
[1742591549647,13.92648557,129.26,129.21,204.54]
[1742591549960,20.0,129.24,129.21,204.54]
[1742591551253,7.7381,129.23,129.21,204.54]
[1742591552287,27.0834,129.23,129.19,6.703]
[1742591552467,28.63683796,129.23,129.19,6.703]
[1742591553446,27.0834,129.23,129.19,6.703]
[1742591554569,27.0834,129.23,129.19,0.063]
[1742591558069,1.55343796,129.22,129.19,0.063]
[1742591558258,28.63683796,129.23,129.19,0.063]
[1742591579791,7.7378,129.24,129.19,0.063]
[1742591579979,91.1467,129.26,129.19,0.063]
[1742591580178,7.7351,129.28,129.2,1.5169]
[1742591580384,7.7351,129.28,129.21,6.62]
[1742591581571,7.7645,129.29,129.22,7.7387]
[1742591585580,7.7645,129.29,129.22,212.3387]
[1742591586670,1.55343796,129.28,129.22,204.6]
[1742591586897,1.55343796,129.28,129.23,6.62]
[1742591587999,28.65423796,129.29,129.23,6.62]
[1742591592585,0.28432314,129.27,129.22,0.063]
[1742591592788,1.8377611,129.27,129.22,0.063]
[1742591594384,27.0771,129.26,129.22,0.063]
[1742591596796,7.7363,129.26,129.22,6.703]
[1742591598113,27.0771,129.26,129.22,6.703]
[1742591598798,19.3408,129.26,129.22,6.703]
[1742591600597,27.0771,129.26,129.22,6.703]
[1742591602024,67.31223796,129.26,129.22,0.063]
[1742591609217,7.7375,129.24,129.22,0.063]
[1742591615432,7.88026157,129.23,129.22,0.063]
[1742591625106,7.7381,129.23,129.22,0.063]
[1742591625436,7.7378,129.24,129.22,0.063]
[1742591626836,27.08,129.25,129.22,0.063]
[1742591627234,7.7369,129.25,129.22,0.063]
[1742591635444,27.0792,129.25,129.22,0.063]
[1742591639949,7.7369,129.25,129.22,0.063]
[1742591640446,38.15831043,129.29,129.23,6.6]
[1742591640647,0.03,129.29,129.23,6.6]
[1742591641346,0.03,129.29,129.24,7.7375]
[1742591645733,0.03,129.29,129.25,15.6618]
[1742591651848,0.03,129.29,129.25,35.0041]
[1742591652933,0.03,129.29,129.27,7.7357]
[1742591653134,0.03,129.29,129.28,211.06]
[1742591655942,0.03,129.29,129.28,218.7951]
[1742591656150,0.03,129.29,129.28,211.06]
[1742591658055,0.03,129.29,129.28,204.46]
[1742591658359,0.03,129.29,129.28,211.06]
[1742591660950,0.03,129.29,129.28,6.6]
[1742591668287,0.03,129.29,129.28,14.3351]
[1742591669883,0.03,129.29,129.28,14.3981]
[1742591670654,0.03,129.29,129.28,33.332072]
[1742591672406,0.03,129.33,129.31,20.0]
[1742591672564,0.03,129.33,129.3,1.6133]
[1742591672565,0.03,129.33,129.32,6.6]
[1742591672760,0.03,129.33,129.32,14.3327]
[1742591675266,0.03,129.33,129.32,218.7527]
[1742591675779,0.03,129.33,129.32,211.02]
[1742591678481,0.03,129.33,129.32,204.42]
[1742591678667,0.03,129.33,129.3,3.95374728]
[1742591678867,0.03,129.33,129.31,6.6]
[1742591679384,0.03,129.33,129.28,204.443]
[1742591679586,0.03,129.33,129.29,6.6]
[1742591683291,0.03,129.33,129.3,6.6]
[1742591685102,0.03,129.33,129.3,14.3338]
[1742591686368,0.03,129.33,129.3,6.6]
[1742591688203,0.03,129.33,129.3,14.3339]
[1742591688577,0.03,129.33,129.3,6.6]
[1742591692090,7.7621,129.33,129.3,6.6]
[1742591692405,7.7621,129.33,129.28,204.463]
[1742591692579,7.7621,129.33,129.29,6.6]
[1742591693402,0.03,129.33,129.29,6.6]
[1742591693998,0.03,129.33,129.3,7.7339]
[1742591699000,0.03,129.33,129.3,34.74249757]
[1742591699305,0.03,129.34,129.3,34.74249757]
[1742591699801,0.03,129.34,129.31,0.28432314]
[1742591700298,0.03,129.34,129.3,33.1962]
[1742591704106,0.03,129.34,129.33,20.0]
[1742591704405,0.03,129.34,129.33,26.6]
[1742591704912,0.03,129.34,129.33,6.6]
[1742591705705,0.03,129.34,129.29,7.7345]
[1742591706004,0.03,129.34,129.32,6.6]
[1742591706308,0.03,129.34,129.3,6.6]
[1742591706507,0.03,129.34,129.28,204.463]
[1742591706685,0.03,129.34,129.3,6.6]
[1742591708214,0.03,129.34,129.28,212.1978]
[1742591708509,0.03,129.34,129.29,6.6]
[1742591708896,0.03,129.34,129.28,204.463]
[1742591708897,1.5622,129.33,129.28,204.463]
[1742591709105,1.5622,129.33,129.29,6.6]
[1742591709106,7.7327,129.32,129.29,6.6]
[1742591709941,7.7327,129.32,129.28,204.463]
[1742591710112,14.0282,129.32,129.28,211.063]
[1742591710321,9.2946,129.33,129.28,211.063]
[1742591710528,9.2946,129.33,129.28,218.7979]
[1742591711609,1.5622,129.33,129.28,218.7979]
[1742591712997,9.2943,129.33,129.28,218.7979]
[1742591715015,0.03,129.34,129.29,0.28432314]
[1742591715317,0.03,129.34,129.29,22.37416189]
[1742591715718,0.03,129.34,129.32,20.0]
[1742591716010,0.03,129.34,129.33,6.6]
[1742591717717,0.03,129.34,129.33,14.3321]
[1742591720022,0.03,129.34,129.33,6.6]
[1742591722224,0.03,129.34,129.33,14.3321]
[1742591722599,0.03,129.34,129.33,7.7321]
[1742591722829,0.03,129.34,129.33,14.3321]
[1742591727922,0.03,129.34,129.33,14.3951]
[1742591736317,0.03,129.34,129.33,6.663]
[1742591736837,0.03,129.34,129.33,14.3951]
[1742591737134,0.03,129.34,129.33,6.663]
[1742591737539,0.03,129.34,129.33,14.3951]
[1742591745838,0.03,129.34,129.33,6.663]
[1742591746139,0.03,129.34,129.33,0.063]
[1742591750035,6.4111,129.34,129.33,0.063]
[1742591751848,14.1426,129.34,129.33,0.063]
[1742591752537,14.71124628,129.34,129.33,0.063]
[1742591752732,33.36089514,129.34,129.33,0.063]
[1742591760362,19.21829514,129.33,129.28,6.663]
[1742591760560,1.6634,129.32,129.28,6.663]
[1742591761336,1.6634,129.32,129.28,7.798]
[1742591762031,7.7324,129.33,129.28,7.798]
[1742591762235,5.77365683,129.31,129.28,7.798]
[1742591763547,7.7324,129.33,129.28,7.798]
[1742591764356,5.77155795,129.32,129.28,7.798]
[1742591765346,5.77155795,129.31,129.28,7.798]
[1742591765547,5.77155795,129.31,129.28,6.663]
[1742591766460,7.7327,129.32,129.28,6.663]
[1742591767258,27.0624,129.33,129.28,6.663]
[1742591768347,5.76881782,129.32,129.28,0.063]
[1742591769262,27.0666,129.31,129.28,0.063]
[1742591769459,18.933972,129.3,129.28,0.063]
[1742591770351,5.76881782,129.29,129.28,0.063]
[1742591770858,13.50331782,129.29,129.28,0.063]
[1742591772171,32.72161296,129.29,129.28,0.063]
[1742591772540,32.72161296,129.29,129.28,0.0001]
[1742591772946,38.79391296,129.29,129.28,0.0001]
[1742591776882,38.50958982,129.29,129.28,0.0001]
[1742591777178,5.76881782,129.29,129.28,0.0001]
[1742591778663,7.7339,129.3,129.28,0.0001]
[1742591778863,7.7327,129.32,129.28,0.0001]
[1742591779587,5.75325039,129.31,129.29,6.6]
[1742591780281,7.7327,129.32,129.29,6.6]
[1742591780785,7.7321,129.33,129.29,6.6]
[1742591781076,5.75379967,129.32,129.29,6.6]
[1742591781970,7.7333,129.31,129.29,6.6]
[1742591784074,19.3313,129.33,129.28,0.0001]
[1742591784075,19.21829514,129.32,129.28,0.0001]
[1742591784278,22.4027331,129.32,129.28,0.0001]
[1742591784672,5.75831272,129.3,129.28,0.0001]
[1742591785776,5.75831272,129.29,129.28,0.0001]
[1742591786088,32.71110786,129.29,129.28,0.0001]
[1742591789270,52.04740786,129.29,129.24,6.6]
[1742591789668,32.82911272,129.29,129.24,6.6]
[1742591790589,7.7357,129.27,129.24,6.6]
[1742591791685,5.75831272,129.26,129.24,6.6]
[1742591793683,7.7357,129.27,129.24,6.6]
[1742591794986,19.24829514,129.3,129.24,14.3374]
[1742591794987,0.03,129.3,129.24,14.3374]
[1742591795279,0.03,129.3,129.25,1.608]
[1742591795470,0.03,129.3,129.26,6.134]
[1742591797081,0.03,129.3,129.27,7.7357]
[1742591797293,0.03,129.3,129.28,6.6]
[1742591798892,0.03,129.3,129.23,6.134]
[1742591799687,19.24829514,129.3,129.23,6.134]
[1742591800169,19.24829514,129.3,129.24,6.6]
[1742591800366,19.24829514,129.3,129.21,212.2191]
[1742591800585,19.24829514,129.3,129.22,6.6]
[1742591801095,19.21829514,129.28,129.21,212.2191]
[1742591801393,19.21829514,129.28,129.22,6.6]
[1742591802982,7.7357,129.27,129.22,6.6]
[1742591803978,27.075,129.27,129.22,6.6]
[1742591805896,1.5962,129.26,129.22,6.6]
[1742591806793,1.5962,129.26,129.21,204.48]
[1742591807401,27.7369,129.25,129.21,204.48]
[1742591810390,27.7369,129.25,129.21,204.543]
[1742591810894,27.7669,129.25,129.21,204.543]
[1742591813904,0.03,129.25,129.21,212.2823]
[1742591816211,0.03,129.25,129.21,204.543]
[1742591819127,20.28432314,129.22,129.21,0.063]
[1742591819317,19.21829514,129.2,129.19,0.063]
[1742591819692,101.9,129.21,129.19,0.063]
[1742591820197,20.7717331,129.2,129.19,0.063]
[1742591820518,28.5116331,129.2,129.19,0.063]
[1742591821719,7.7399,129.2,129.19,0.063]
[1742591826809,27.0897,129.2,129.16,0.063]
[1742591827016,19.21829514,129.19,129.16,0.063]
[1742591828124,7.7411,129.18,129.16,0.063]
[1742591828692,27.0939,129.18,129.15,0.063]
[1742591828897,39.21829514,129.16,129.15,0.063]
[1742591829107,40.81969514,129.16,129.15,0.063]
[1742591829318,40.81969514,129.16,129.15,0.0001]
[1742591830300,48.56199514,129.16,129.15,0.0001]
[1742591832215,29.3437,129.16,129.15,0.0001]
[1742591832516,9.3437,129.16,129.15,0.0001]
[1742591832714,28.56199514,129.16,129.15,0.0001]
[1742591834104,19.07613357,129.11,129.09,0.063]
[1742591834420,42.183972,129.15,129.09,0.063]
[1742591834421,19.21829514,129.13,129.09,0.063]
[1742591835012,1.55343796,129.14,129.09,0.063]
[1742591835214,19.21829514,129.14,129.09,0.063]
[1742591836227,0.56864628,129.12,129.09,0.063]
[1742591837027,7.7441,129.13,129.09,0.063]
[1742591837327,26.677572,129.14,129.09,0.063]
[1742591838827,7.7436,129.14,129.09,0.063]
[1742591839032,7.7436,129.14,129.09,6.783]
[1742591839341,7.7436,129.14,129.09,14.5291]
[1742591840409,7.7429,129.15,129.09,14.5291]
[1742591847327,7.7729,129.15,129.09,14.5291]
[1742591852437,0.03,129.15,129.1,6.4349]
[1742591855141,0.03,129.15,129.11,7.7453]
[1742591857016,0.03,129.15,129.11,27.1086]
[1742591857440,0.03,129.15,129.14,20.0]
[1742591857630,0.03,129.15,129.14,26.7]
[1742591858333,0.03,129.15,129.14,45.633972]
[1742591859740,0.03,129.2,129.15,6.2004]
[1742591862047,0.03,129.2,129.15,13.9431]
[1742591863540,0.03,129.2,129.15,6.7]
[1742591863726,19.24829514,129.2,129.14,204.66]
[1742591863932,19.24829514,129.2,129.14,211.36]
[1742591865844,27.0918,129.19,129.14,211.36]
[1742591868040,7.7405,129.19,129.14,219.1034]
[1742591868351,7.7405,129.19,129.14,211.36]
[1742591869638,7.7405,129.19,129.14,6.7]
[1742591871354,7.7705,129.19,129.14,6.7]
[1742591878260,7.7705,129.19,129.14,14.4434]
[1742591880757,0.03,129.19,129.14,14.4434]
[1742591881358,0.03,129.19,129.14,33.8022]
[1742591883144,0.03,129.19,129.14,35.3501582]
[1742591884041,0.03,129.19,129.15,223.573972]
[1742591884245,0.03,129.19,129.16,7.74456855]
[1742591884965,0.03,129.19,129.17,7.7417]
[1742591885263,0.03,129.19,129.18,6.66]
[1742591887164,0.03,129.19,129.18,20.46536894]
[1742591887364,0.03,129.19,129.18,14.4011]
[1742591888251,0.03,129.19,129.18,6.66]
[1742591893752,0.03,129.19,129.16,6.66]
[1742591897585,0.03,129.19,129.15,212.3828]
[1742591897775,0.03,129.19,129.16,6.66]
[1742591899093,0.03,129.19,129.16,14.4022]
[1742591900470,0.03,129.19,129.18,20.0]
[1742591900990,0.03,129.19,129.16,40.2602]
[1742591901202,0.03,129.19,129.18,20.0]
[1742591902070,0.03,129.19,129.18,27.7411]
[1742591902594,0.03,129.19,129.18,46.675072]
[1742591902780,0.03,129.2,129.19,19.21829514]
[1742591903402,0.03,129.25,129.22,20.0]
[1742591903570,0.03,129.25,129.23,6.66]
[1742591904204,0.03,129.25,129.24,7.7375]
[1742591905493,0.03,129.25,129.23,6.66]
[1742591913711,0.03,129.25,129.19,204.54]
[1742591913891,0.03,129.25,129.2,6.66]
[1742591916794,1.6637,129.24,129.19,204.54]
[1742591916991,1.6637,129.24,129.2,6.66]
[1742591917591,9.4014,129.24,129.2,6.66]
[1742591917792,1.6637,129.24,129.2,6.66]
[1742591918006,1.6637,129.24,129.2,14.3999]
[1742591918299,1.6637,129.24,129.2,6.66]
[1742591918603,9.4013,129.24,129.2,6.66]
[1742591921092,9.4013,129.24,129.19,204.603]
[1742591921298,28.7451,129.24,129.19,204.603]
[1742591925801,28.7451,129.24,129.19,0.063]
[1742591928124,19.21829514,129.23,129.19,0.063]
[1742591928912,7.7387,129.22,129.19,0.063]
[1742591932636,27.0855,129.22,129.19,0.063]
[1742591941957,8.2191,129.21,129.19,0.063]
[1742591942333,7.7399,129.2,129.19,0.063]
[1742591949839,9.3609,129.21,129.19,0.063]
[1742591951657,1.6214,129.21,129.19,0.063]
[1742591954043,1.6514,129.21,129.19,0.063]
[1742591954664,0.03,129.21,129.19,0.063]
[1742591955064,0.03,129.21,129.2,20.0]
[1742591955270,0.03,129.24,129.21,20.0]
[1742591955448,0.03,129.24,129.22,6.62]
[1742591956268,0.03,129.24,129.23,8.02242314]
[1742591956472,0.03,129.24,129.23,17.4863085]
[1742591956980,0.03,129.25,129.24,19.21829514]
[1742591957149,0.03,129.28,129.24,19.21829514]
[1742591957466,0.03,129.28,129.27,20.0]
[1742591957675,0.03,129.28,129.27,26.64]
[1742591957861,0.03,129.28,129.27,45.85829514]
[1742591958775,0.03,129.28,129.27,51.97352779]
[1742591959148,0.03,129.28,129.27,61.25564976]
[1742591962859,0.03,129.28,129.27,53.51994976]
[1742591963573,0.03,129.28,129.27,61.25564976]
[1742591967283,0.03,129.28,129.27,265.69564976]
[1742591967473,0.03,129.28,129.27,264.14922779]
[1742591969882,0.03,129.28,129.27,250.29829514]
[1742591970386,0.43,129.28,129.27,250.29829514]
[1742591971386,0.43,129.28,129.27,256.47291105]
[1742591971780,0.43,129.28,129.27,264.20861105]
[1742591973599,0.43,129.28,129.27,270.60961105]
[1742591976887,1e-08,129.3,129.28,19.21829514]
[1742591977073,1e-08,129.3,129.29,1.54611442]
[1742591978590,1e-08,129.3,129.29,9.28061442]
[1742591978788,1e-08,129.3,129.29,28.49890956]
[1742591980900,0.03,129.32,129.31,0.28432314]
[1742591981207,0.03,129.37,129.34,19.07613357]
[1742591981401,0.03,129.37,129.35,6.62]
[1742591982403,0.03,129.37,129.35,14.3509]
[1742591982598,0.03,129.37,129.35,10.47144324]
[1742591994714,0.03,129.37,129.36,6.6]
[1742592000432,0.03,129.37,129.33,204.423]
[1742592000732,0.03,129.37,129.34,6.6]
[1742592003324,0.03,129.37,129.34,10.52131842]
[1742592004233,0.099931,129.37,129.34,10.52131842]
[1742592005844,8.3036,129.36,129.34,6.6]
[1742592006946,7.7309,129.35,129.34,6.6]
[1742592007244,7.7309,129.35,129.33,0.063]
[1742592007245,7.7309,129.35,129.33,6.663]
[1742592008026,7.7309,129.35,129.33,0.063]
[1742592010030,9.3679,129.36,129.33,0.063]
[1742592010215,1.6374,129.36,129.33,0.063]
[1742592014863,6.6662,129.34,129.33,0.063]
[1742592015028,8.3036,129.34,129.33,0.063]
[1742592015526,27.52189514,129.34,129.27,10.38654035]
[1742592016743,27.0624,129.33,129.25,0.063]
[1742592016937,28.61583796,129.33,129.25,0.063]
[1742592017141,19.21829514,129.32,129.26,6.64]
[1742592017348,1.6374,129.31,129.25,6.723]
[1742592018244,27.0687,129.3,129.25,6.723]
[1742592018456,6.1489,129.29,129.25,6.723]
[1742592019143,20.0,129.27,129.25,0.063]
[1742592019339,1.5804,129.26,129.25,0.063]
[1742592020458,9.3167,129.26,129.25,0.063]
[1742592024263,28.53499514,129.26,129.25,0.063]
[1742592025695,19.21829514,129.25,129.2,0.063]
[1742592026170,27.0834,129.23,129.2,0.063]
[1742592027970,7.7393,129.21,129.2,0.063]
[1742592029583,26.95759514,129.21,129.2,0.063]
[1742592034081,7.7393,129.21,129.2,0.063]
[1742592037306,26.95759514,129.21,129.2,0.0001]
[1742592037501,28.5110331,129.21,129.2,0.0001]
[1742592040825,26.95759514,129.21,129.2,0.0001]
[1742592041808,28.5110331,129.21,129.2,0.0001]
[1742592044719,28.5110331,129.21,129.19,0.0001]
[1742592048035,19.21829514,129.2,129.19,0.0001]
[1742592049924,27.45819514,129.2,129.19,0.0001]
[1742592052829,20.0,129.17,129.15,0.063]
[1742592053033,20.0,129.16,129.15,0.063]
[1742592053934,40.05625214,129.16,129.15,0.063]
[1742592054618,47.79855214,129.16,129.15,0.063]
[1742592066943,67.01684728,129.16,129.15,0.0001]
[1742592078623,77.51144938,129.16,129.15,0.0001]
[1742592083256,136.07884938,129.16,129.12,0.063]
[1742592083555,136.07884938,129.16,129.12,0.0001]
[1742592083556,19.21829514,129.14,129.12,0.0001]
[1742592085532,26.96239514,129.13,129.12,0.0001]
[1742592096858,7.7441,129.13,129.12,0.0001]
[1742592097442,7.744,129.14,129.12,0.0001]
[1742592098066,0.03,129.13,129.12,0.0001]
[1742592104456,20.03,129.13,129.12,0.0001]
[1742592105172,0.03,129.13,129.12,0.28442314]
[1742592105469,20.08625214,129.16,129.12,27.18870077]
[1742592106165,20.08625214,129.16,129.12,33.36774062]
[1742592106368,20.08625214,129.16,129.14,7.7435]
[1742592106571,20.08625214,129.16,129.15,6.62]
[1742592108572,20.08625214,129.16,129.15,14.3629]
[1742592111471,20.08625214,129.16,129.15,33.58119514]
[1742592112060,0.03,129.16,129.15,33.58119514]
[1742592116158,0.03,129.16,129.13,1.2708]
[1742592116363,0.03,129.16,129.13,7.8708]
[1742592122893,0.03,129.16,129.13,7.9338]
[1742592125372,0.03,129.16,129.13,15.6778]
[1742592133976,0.03,129.16,129.13,14.407]
[1742592134186,0.03,129.16,129.13,6.663]
[1742592134980,0.03,129.16,129.14,6.6]
[1742592138004,0.03,129.16,129.13,0.063]
[1742592138180,0.03,129.16,129.14,6.6]
[1742592147106,0.03,129.16,129.15,7.7429]
[1742592149515,0.03,129.16,129.15,26.96119514]